Cogmind - Beta 13 *** ADVENTURER MODE // 2024.04.11 @ 08:00:58 Player: Kitrana Result: Destroyed by S-10 Pest with Light Assault Rifle Performance ------------- Evolutions (0) 0 Regions Visited (2) 400 Robots Destroyed (22) 110 Value Destroyed (414) 414 Prototype IDs (3) 60 Alien Tech Used (0) 0 Bonus (0) 0 TOTAL SCORE: 984 Bonus ------- None Cogmind --------- Core Integrity 0/250 Matter 300/300 Energy 81/160 System Corruption 1% Temperature Cool (0) Movement Walking (120) Location -10/Mines Parts ------- > --- POWER (1) -------- Light Nuclear Core > --- PROPULSION (2) --- Aluminum Leg Aluminum Leg > --- UTILITY (2) ------ Seismic Detector ECM Suite > --- WEAPON (2) ------- (None) > --- INVENTORY (5) ---- (None) Peak State ------------ > --- POWER ------------ Light Nuclear Core > --- PROPULSION ------- Compact Wheel > --- UTILITY ---------- Signal Interpreter Improved Terrain Scanner > --- WEAPON ----------- Assault Rifle > --- INVENTORY -------- Ion Engine Seismic Detector [Rating: 9] Favorites ----------- Power Ion Engine Engine Ion Engine Power Core Light Nuclear Core Propulsion Compact Wheel Leg Aluminum Leg Wheel Compact Wheel Flight Unit Flight Unit Utility Improved Terrain Scanner Device Improved Terrain Scanner Processor Signal Interpreter Weapon Assault Rifle Ballistic Gun Assault Rifle Build | -11 -10 -10 ------- Run | Yrd Mat Min Slots Evolved . | . . . Power . | . . . Propulsion . | . . . Utility . | . . . Weapon . | . . . Parts Attached 17 | 6 3 8 Power 3 | 1 1 1 Engine 1 | 1 . . Core 2 | . 1 1 Reactor . | . . . Propulsion 6 | 2 . 4 Treads . | . . . Leg 2 | . . 2 Wheel 2 | 2 . . Hover . | . . . Flight 2 | . . 2 Utility 6 | 2 2 2 Device 5 | 2 1 2 Storage . | . . . Processor 1 | . 1 . Hackware . | . . . Protection . | . . . Artifact . | . . . Weapon 2 | 1 . 1 Energy Gun . | . . . Energy Cannon . | . . . Ballistic Gun 2 | 1 . 1 Ballistic Cannon . | . . . Launcher . | . . . Special Weapon . | . . . Impact Weapon . | . . . Slashing Weapon . | . . . Piercing Weapon . | . . . Special Melee Weapon . | . . . Unidentified Prototypes . | . . . Parts Lost 6 | . 1 5 Power 1 | . . 1 Propulsion 2 | . 1 1 Utility 1 | . . 1 Weapon 2 | . . 2 Highest Loss Streak 2 | . 1 2 To Critical Strikes . | . . . Average Slot Usage (%) 66 | . 79 52 Engine 5 | . 11 . Core 6 | . 2 10 Wheel 11 | . 22 . Device 22 | . 17 26 Processor 5 | . 10 . Ballistic Gun 13 | . 14 12 Naked Turns . | . . . Heaviest Build 9 | 9 9 9 Greatest Support 26 | 26 26 20 Greatest Overweight (x) 2 | . . 2 Average Overweight (x) . | . . 1 Largest Inventory Capacity 5 | 5 5 5 Average Capacity 5 | 5 5 5 Most Carried 4 | 1 3 4 Average Carried . | . . 1 Final Capacity 5 | 5 5 5 Final Carried 2 | . 2 . Class Distribution -------------------- 58% | Mutant 41% | Infiltrator-Mutant Dominant Class ---------------- Mutant | -10/Materials Infiltrator-Mutant | -10/Mines Resources | -11 -10 -10 ----------- Run | Yrd Mat Min Matter Collected 513 | 230 202 81 Remotely . | . . . Salvage Created 585 | 73 364 148 Parts 54 | 8 36 10 Haulers Intercepted . | . . . Recyclers Shooed . | . . . Parts Field Recycled . | . . . Retrieved Matter . | . . . Parts Self-Destructed . | . . . Prevented . | . . . Kills | -11 -10 -10 ------- Run | Yrd Mat Min Combat Hostiles Destroyed 16 | . 11 5 Melee 3 | . . 3 Guns 13 | . 11 2 Classes Destroyed 4 | 1 3 . Tunneler 4 | 4 . . Watcher 2 | . 2 . Swarmer 9 | . 6 3 Grunt 7 | . 5 2 Best Kill Streak 3 | 2 3 3 Combat Bots Only 3 | . 3 3 Max Kills in Single Turn 1 | 1 1 1 Gunslinging . | . . . Exploded . | . . . Melee 1 | . . 1 Uniques/NPCs Destroyed . | . . . Combat | -11 -10 -10 -------- Run | Yrd Mat Min Hostile Shots Fired 109 | . 51 58 Missed 29 | . 19 10 Damage Taken 678 | . 288 390 Core 251 | . 59 192 Absorbed by Shields . | . . . Ignored by Resistances 206 | . 86 120 Core Remaining (%) 100 | 100 . . Volleys Fired 78 | 13 46 19 Largest 1 | 1 1 1 Hottest 20 | 20 20 20 Shots Fired 78 | 13 46 19 Gun 78 | 13 46 19 Cannon . | . . . Launcher . | . . . Special . | . . . Kinetic 78 | 13 46 19 Thermal . | . . . Explosive . | . . . Electromagnetic . | . . . Robot Hit Streak 9 | 7 8 9 Robot Miss Streak 3 | 1 3 1 Penetration Max . | . . . Secondary Targets . | . . . Shots Hit Robots 56 | 12 29 15 Core Hits 38 | 4 18 16 Critical Kills . | . . . Critical Parts Destroyed . | . . . Critical Strikes . | . . . Melee Attacks . | . . . Impact . | . . . Slashing . | . . . Piercing . | . . . Sneak Attacks . | . . . Combat Hostiles . | . . . Follow-up Attacks . | . . . Damage Inflicted 702 | 152 396 154 Guns 657 | 152 386 119 Cannons . | . . . Explosions . | . . . Melee . | . . . Ramming 45 | . 10 35 Kinetic 657 | 152 386 119 Thermal . | . . . Explosive . | . . . Electromagnetic . | . . . Impact . | . . . Slashing . | . . . Piercing . | . . . Highest Corruption 1 | . . 1 Average Corruption 1 | . . 1 Corruption Purged . | . . . Corruption Blocked . | . . . Overload Shots . | . . . Overflow Damage . | . . . Projectiles . | . . . Explosions . | . . . Melee . | . . . Knockbacks 1 | . 1 . Impact 1 | . 1 . Kinetic . | . . . Secondary . | . . . Self-Inflicted Damage 19 | . 5 14 Shots . | . . . Rammed 12 | . 2 10 Targets Rammed 13 | . 2 11 Kicked 1 | . . 1 Crushed . | . . . Highest Temperature 17 | . 17 5 Average Temperature 4 | . 11 2 Received Heat Transfer 318 | . 153 165 Siege Activations . | . . . Robots Corrupted . | . . . Combat Hostiles . | . . . Parts Fried . | . . . Impact Corruptions . | . . . Robots Melted . | . . . Combat Hostiles . | . . . Parts Melted . | . . . Heat Transferred . | . . . Parts Sabotaged . | . . . Parts Stolen . | . . . Parts Stripped . | . . . Power Chain Reactions . | . . . Alert | -11 -10 -10 ------- Run | Yrd Mat Min Peak Influence 309 | 20 309 155 Initial 40 | . 11 40 Average 105 | 7 132 101 Maximum Alert Level 1 | . 1 . Low Security (%) 85 | 100 68 100 Level 1 14 | . 31 . Level 2 . | . . . Level 3 . | . . . Level 4 . | . . . Level 5 . | . . . High Security . | . . . Max Security . | . . . Squads Dispatched 1 | . 1 . Investigation 1 | . 1 . Extermination . | . . . Reinforcement . | . . . Assault . | . . . Garrison . | . . . Intercept . | . . . Searches Triggered . | . . . Construction Impeded . | . . . Haulers Reinforced . | . . . Active Scanning Responses . | . . . Cargo Convoy Interrupts . | . . . Stealth | -11 -10 -10 --------- Run | Yrd Mat Min Distress Signals . | . . . Communications Jammed . | . . . Distress Signals . | . . . Times Spotted 32 | . 15 17 Peak Tracking Total 3 | . 3 3 Tactical Retreats 5 | . . 5 Traps | -11 -10 -10 ------- Run | Yrd Mat Min Traps Triggered . | . . . Indirectly . | . . . Trap Hack Attempts . | . . . Triggered . | . . . Disarmed . | . . . Reprogrammed . | . . . Reused . | . . . Traps Extracted . | . . . Installed . | . . . Triggered . | . . . Machines | -11 -10 -10 ---------- Run | Yrd Mat Min Machines Disabled . | . . . Max in Single Turn . | . . . Machines Repaired . | . . . Machines Dismantled . | . . . Machines Sabotaged . | . . . Overloaded Fab Kills . | . . . Hacking | -11 -10 -10 --------- Run | Yrd Mat Min Machines Accessed 5 | . 5 . Terminals 3 | . 3 . Fabricators . | . . . Repair Stations . | . . . Recycling Units 2 | . 2 . Scanalyzers . | . . . Garrison Access . | . . . Total Hacks 16 | . 16 . Successful 12 | . 12 . Failed 4 | . 4 . Catastrophic . | . . . Database Lockouts . | . . . Manual . | . . . Terminals 9 | . 9 . Fabricators . | . . . Repair Stations . | . . . Recycling Units 7 | . 7 . Scanalyzers . | . . . Garrison Access . | . . . Terminal Hacks 6 | . 6 . Prototype ID Bank 2 | . 2 . Alert Level 1 | . 1 . Investigation Status 1 | . 1 . Zone Layout 2 | . 2 . Fabricator Hacks . | . . . Repair Station Hacks . | . . . Recycling Unit Hacks 6 | . 6 . Recycle Component 1 | . 1 . Process 1 | . 1 . Report Inventory 1 | . 1 . Retrieve Matter 3 | . 3 . Scanalyzer . | . . . Garrison Access Hacks . | . . . Unauthorized Hacks . | . . . Terminals . | . . . Fabricators . | . . . Repair Stations . | . . . Recycling Units . | . . . Scanalyzers . | . . . Garrison Access . | . . . Data Cores Recovered . | . . . Used . | . . . Hacking Detections 4 | . 4 . Full Trace Events 1 | . 1 . Feedback Events . | . . . Feedback Blocked . | . . . Robot Schematics Acquired . | . . . Robots Built . | . . . Authchips . | . . . Time . | . . . Total Robot Build Rating . | . . . Part Schematics Acquired . | . . . Parts Built . | . . . Authchips . | . . . Time . | . . . Total Part Build Rating . | . . . Parts Repaired . | . . . Time . | . . . Parts Recycled 1 | . 1 . Recycled Matter 98 | . 98 . Retrieved Matter 98 | . 98 . Retrieved Components . | . . . Parts Scanalyzed . | . . . Part Schematics Acquired . | . . . Parts Damaged . | . . . Bothacking | -11 -10 -10 ------------ Run | Yrd Mat Min Used RIF Installer . | . . . Robots Hacked . | . . . Non-combat . | . . . Combat . | . . . Robot Hacks Applied . | . . . Relay Couplers Released . | . . . Fabnet Peak Effective % . | . . . Robots Rewired . | . . . Allies Hacked . | . . . Hacks Repelled . | . . . Allies | -11 -10 -10 -------- Run | Yrd Mat Min Total Allies . | . . . Largest Group . | . . . Highest-Rated Group . | . . . Highest-Rated Ally . | . . . Total Orders . | . . . Ally Attacks . | . . . Total Damage . | . . . Kills . | . . . Allies Corrupted . | . . . Allies Melted . | . . . Intel | -11 -10 -10 ------- Run | Yrd Mat Min Robot Analysis Total . | . . . Derelict Logs Recovered 1 | . . 1 Drone Launches . | . . . Drone Recoveries . | . . . Exploration | -11 -10 -10 ------------- Run | Yrd Mat Min Turns Passed 967 | 97 440 430 Spaces Moved 611 | 71 312 228 Core 216 | 11 . 205 Treads . | . . . Legs 12 | . . 12 Wheels 383 | 60 312 11 Hover . | . . . Flight . | . . . Fastest Speed 50 | 50 90 50 Average Speed 108 | 83 93 136 Slowest Speed 150 | 100 100 150 Overloaded Moves . | . . . Propulsion Burnouts . | . . . Robots Hopped . | . . . Cave-ins Triggered . | . . . Exploration Rate (%) 33 | 3 51 45 Regions Visited 2 Branch Regions 1 Pre-discovered Areas . | . . . Known Exits Taken 1 | . 1 . Unknown Exits Taken 1 | 1 . . Scrap Searched . | . . . Spaces Dug . | . . . Terrain Destroyed . | . . . Melee . | . . . Projectile . | . . . AOE . | . . . Terrain Rammed . | . . . Walls Destroyed . | . . . Machines Disabled . | . . . Actions | -11 -10 -10 --------- Run | Yrd Mat Min Total 840 | 95 413 332 Wait 98 | . 42 56 Move 609 | 70 311 228 Hop . | . . . Pick Up 19 | 6 6 7 Fast Attach . | . . . Attach 13 | 6 . 7 Detach . | . . . Swap 4 | . 3 1 Drop 6 | . 3 3 Fire 78 | 13 46 19 Melee . | . . . Ram 12 | . 2 10 Kick 1 | . . 1 Crush . | . . . Escape Stasis . | . . . Rewire . | . . . Trap . | . . . Miscellaneous . | . . . Route ------- -11/Scrapyard -10/Materials (discovered 3 exits: *Mat x2 / *Min) -10/Mines History --------- Turn | Location | Event 15 | -11/Scrapyard | Discovered new exit (range 15) 98 | -11/Scrapyard | Entered Materials 300 | -10/Materials | Discovered new exit (range 12) 309 | -10/Materials | Identified exit to Materials 314 | -10/Materials | Build established: Mutant 398 | -10/Materials | Discovered exit to Materials (range 6) 531 | -10/Materials | Discovered new exit (range 3) 533 | -10/Materials | Identified exit to Mines 538 | -10/Materials | Entered Mines 551 | -10/Mines | Met a Derelict bent on vengeance 745 | -10/Mines | Found a hidden stash of uninstalled traps 839 | -10/Mines | Build established: Infiltrator-Mutant 888 | -10/Mines | Core integrity fell below 50% 902 | -10/Mines | Core integrity fell below 20% 958 | -10/Mines | Learned Materials terminal intel 968 | -10/Mines | Destroyed by S-10 Pest with Light Assault Rifle Last Messages --------------- 00613_ R-06 Scavenger collects Flight Unit. 00745_ A stash of uninstalled traps is collected here! 00845_ Lgt. Nuclear Core destroyed. 00901_ G-47 Trooper destroyed. 00917_ Lgt. Assault Rifle destroyed. 00917_ Acquired Lgt. Nuclear Core. 00918_ Slammed into G-34 Mercenary. 00918_ Destabilizing: System corrupted (+1). 00918_ R-06 Scavenger collects Particle Gun. 00919_ Slammed into G-34 Mercenary. 00921_ Structural Scanner destroyed. 00921_ Slammed into G-34 Mercenary. 00923_ G-34 Mercenary destroyed. 00926_ Acquired Aluminum Leg. 00942_ K-01 Serf collects debris. 00953_ Acquired 40 matter. 00954_ K-01 Serf collects debris. 00958_ Acquired derelict log, extracted data. Data stored: Materials terminal intel. 00968_ Kicked S-10 Pest. Map ----- +----------------------------------------------------+ | ###??## #########??###??????????????????????????? | | ####?## ### ##########?????????????????????????? | | & ###?## ### ####????????????????????????? | | ######## ###????????????????????????? | | # ######## ###???????????????????????? | | ## ###### ## ##???????????????????????? | | ## #### ###### ???????????????????????? | | ## ####?###? ???????????????????????? | | #####???????? ????????????????????????? | | ### #####???????? ????????????????????????? | | ####### ###????????? ????????????????????????? | | ####### ##?????????# ????????????????????????? | | ##???### ##?????????? ????????????????????????? | | ##???#### ###?????????? #???????????????????????? | | ####??#######?????????? ???????????????????????? | | #####??###????????????? ##?????????????????????? | | ####???######???????? #####?????????????????? | | ################????# ###???????????????? | | ####### ######???## ????????????????? | | #### ##???## ?????????????????? | | ### ## ##?### ??????????????????? | | ###???## ???????????????????? | | ###???# s #????????????????????? | | ### ###???? #?????????????????????? | | ##### ##?????? #ss##?????????????????????? | | ####### ##??????## @##?????????????????????? | | ####?#### ###??????## ##?????????????????????? | | ####???#### ###??????## r##?????????????????????? | | ###?????### ###?????## ##?????????????????????? | | ##???????### ###????## ##?????????????????????? | | #????????### ###???##k!##?????????????????????? | | ?????????## ##???## %##?????????????????????? | | #####????# ##???##% ##?????????????????????? | | #####????? ###??### ##T????????????????????? | | ##????# #####??### %###????????????????????? | | ##????## #####???## ##????????????????????? | | ###???## ###????### ##????????????????????? | | ####??## ##???##### ###????????????????????? | | ####### ##??##### ####????????????????????? | | ###### ####### ####?????????????????????? | | ###### ####??????????????????????? | | ## ####### #### #####???????????????????????? | | ########### ### #######??????????????????????? | | ###### ## ####### ##???????????????????? | | ????## #### ## ##???????????????????? | | ????## ### ## ##### ####???????????????????? | | ???????## ##### ##?????????????????????? | | ???????## ##????????????????????????????? | | ???????## ###????????????????????????????? | | ???????## ########????????????????????????????? | +----------------------------------------------------+ Best States ------------- Heat Dissipation 25 Energy Generation 14 Energy Capacity 250 Matter Stores 300 Matter Capacity 300 Sight Range 16 Terrain Scan Range 16 Terrain Scan Density 10 ECM Strength 1 Resistance: KI 20 Resistance: TH 20 Resistance: EX 20 Resistance: EM 20 Resistance: I 20 Resistance: S 20 Resistance: P 20 Evasion (%) 50 Offensive Hacking 10 Item Schematics ----------------- None Robot Schematics ------------------ None Fabricated ------------ Nothing Alien Tech Used ----------------- None Achievements -------------- None Challenges ------------ None Game ------ Seed PortableSuspensionStripper Manual? 0 Play Time 00:13:37 Cumulative 7.0 hours Start 2024.04.11 @ 07:48:01 End 2024.04.11 @ 08:00:58 Sessions 1 Manual Loads 0 Difficulty Adventurer Special Mode None Game No. 11 Rogue 0 Adventurer 11 Explorer 0 Win Type - Total 0 Types 0/0/0/0/0/0/0/0/0 Lore% 11 Gallery% 11 Achievement% 14 Wizard Run 0 Options --------- Layout 1 ASCII 0 Keyboard 0 Movement Mouse Keybinds 0 Fullscreen 0 Font 20/SmallcapsGlow Map View 64x42 Zoom Use 0% Tactical HUD 1 Map Filters NONE Filters NONE Steam 1 RUN: e8541940-fd81-466a-9219-fe739b767e12